fUST/lending_fUST_20250302
["ID","MTS","AMOUNT","RATE_DAILY","PERIOD"]
[354953325,1740845141141,-175.33985521,0.00024804,5]
[354953326,1740845141165,-161.7744229,0.0002486,2]
[354953327,1740845141191,-211.17027794,0.00024933,2]
[354953328,1740845166351,9422.42584272,0.00025,30]
[354953331,1740845203999,3966.23008573,0.00025,30]
[354953332,1740845204022,9653.49934317,0.00025,30]
[354953333,1740845235130,-4926.11856964,0.00024933,2]
[354953334,1740845242088,-207.8415521,0.00024933,2]
[354953335,1740845247089,-548.86223702,0.00024933,2]
[354953336,1740845247112,-500.0,0.00025205,2]
[354953337,1740845247135,-500.0,0.00025205,2]
[354953338,1740845247159,-300.0,0.00025639,2]
[354953339,1740845247182,-978.93371418,0.0002564,2]
[354953340,1740845268290,162.46690627,0.00024704,60]
[354953341,1740845277732,30000.0,0.00025,10]
[354953342,1740845345247,-300.0,0.00025083,2]
[354953343,1740845345273,-182.59659981,0.00025084,2]
[354953344,1740845346104,-3498.0622369,0.00025084,2]
[354953345,1740845346143,-21219.34116329,0.00025084,2]
[354953346,1740845346168,-1702.55460336,0.0002564,2]
[354953347,1740845346197,-10000.0,0.00025781,2]
[354953348,1740845346222,-2842.39531311,0.00025802,2]
[354953349,1740845346251,-496.66436768,0.000259,4]
[354953350,1740845346277,-250.0,0.00025902,2]
[354953351,1740845346302,-500.0,0.00026,2]
[354953352,1740845346327,-730.0,0.00026,2]
[354953353,1740845346354,-1001.30933221,0.00026042,30]
[354953354,1740845346382,-256.57672027,0.00026075,2]
[354953355,1740845346408,-500.0,0.00026075,2]
[354953356,1740845346437,-500.0,0.00026075,2]
[354953357,1740845346463,-500.0,0.00026075,2]
[354953358,1740845346488,-280.13952622,0.00026075,2]
[354953359,1740845346516,-312.73866876,0.00026075,2]
[354953360,1740845353094,-187.26133124,0.00026075,2]
[354953361,1740845353118,-500.0,0.00026075,2]
[354953362,1740845353142,-500.0,0.00026075,2]
[354953363,1740845353166,-500.0,0.00026075,2]
[354953364,1740845353190,-630.35909971,0.00026075,2]
[354953365,1740845353214,-500.0,0.00026075,2]
[354953366,1740845353238,-179.37939149,0.00026075,2]
[354953367,1740845354096,-320.62060851,0.00026075,2]
[354953368,1740845354121,-500.0,0.00026075,2]
[354953369,1740845354147,-500.0,0.00026075,2]
[354953370,1740845354172,-500.0,0.00026075,2]
[354953371,1740845354197,-500.0,0.00026075,2]
[354953372,1740845354222,-500.0,0.00026075,2]
[354953373,1740845354248,-500.0,0.00026075,2]
[354953374,1740845354273,-500.0,0.00026075,2]
[354953375,1740845354298,-500.0,0.00026075,2]
[354953376,1740845354336,-500.0,0.00026075,2]
[354953377,1740845354365,-500.0,0.00026075,2]
[354953378,1740845354393,-163.03590997,0.00026075,2]
[354953379,1740845354420,-500.0,0.00026075,2]
[354953380,1740845354447,-500.0,0.00026075,2]
[354953381,1740845354473,-500.0,0.00026075,2]
[354953382,1740845354497,-1335.67777539,0.00026076,2]
[354953383,1740845354520,-10966.70657547,0.00026076,2]
[354953384,1740845354544,-1725.306943,0.00026103,2]
[354953385,1740845354568,-209.3969537,0.00026125,2]
[354953386,1740845354592,-505.45998538,0.00026173,2]
[354953387,1740845354614,-500.0,0.00026173,2]
[354953388,1740845354637,-500.0,0.00026173,2]
[354953389,1740845354660,-481.69426348,0.00026173,2]
[354953390,1740845354684,-500.0,0.00026173,2]
[354953391,1740845354707,-500.0,0.00026173,2]
[354953392,1740845354730,-500.0,0.00026173,2]
[354953393,1740845354754,-500.0,0.00026173,2]
[354953394,1740845354778,-500.0,0.00026173,2]
[354953395,1740845354802,-500.0,0.00026173,2]
[354953396,1740845354827,-500.0,0.00026173,2]
[354953397,1740845354851,-500.0,0.00026173,2]
[354953398,1740845354874,-500.0,0.00026173,2]
[354953399,1740845354897,-298.53335176,0.00026173,2]
[354953400,1740845354922,-500.31119276,0.00026173,2]
[354953401,1740845354945,-192.80701253,0.00026173,2]
[354953402,1740845354968,-500.0,0.00026173,2]
[354953403,1740845354991,-277.00956911,0.00026173,2]
[354953404,1740845355014,-500.0,0.00026173,2]
[354953405,1740845355042,-503.90143932,0.00026173,2]
[354953406,1740845355066,-500.0,0.00026173,2]
[354953407,1740845355089,-360.32608912,0.00026173,2]
[354953408,1740845355112,-257.87264083,0.00026173,2]
[354953409,1740845355136,-500.0,0.00026173,2]
[354953410,1740845355159,-198.58950447,0.00026173,2]
[354953411,1740845355181,-500.0,0.00026173,2]
[354953412,1740845355204,-613.61662809,0.00026173,2]
[354953413,1740845355227,-500.0,0.00026173,2]
[354953414,1740845355250,-500.0,0.00026173,2]
[354953415,1740845355274,-502.48401586,0.00026173,2]
[354953416,1740845355297,-504.98913373,0.00026173,2]
[354953417,1740845355323,-500.0,0.00026173,2]
[354953418,1740845355349,-164.37568423,0.00026175,2]
[354953419,1740845355375,-513.87825906,0.00026175,2]
[354953420,1740845355399,-552.89173562,0.00026175,2]
[354953421,1740845355424,-155.37937032,0.00026175,2]
[354953422,1740845355731,-500.0,0.00026175,2]
[354953423,1740845355757,-500.0,0.00026175,2]
[354953424,1740845355781,-367.68444753,0.00026175,2]
[354953425,1740845355804,-444.76880264,0.00026175,2]
[354953426,1740845355831,-25000.0,0.00026176,3]
[354953427,1740845355855,-160.0,0.00026176,3]
[354953428,1740845355879,-50479.50880273,0.00026176,2]
[354953429,1740845358133,-500.0,0.00026173,2]
[354953430,1740845358155,-500.0,0.00026173,2]
[354953431,1740845358179,-562432.07011214,0.00026176,2]
[354953432,1740845358209,-556996.20805029,0.00026176,2]
[354953433,1740845361180,-270460.50953807,0.00026176,2]
[354953434,1740845368099,-353.74,0.00026166,3]
[354953435,1740845368125,-500.0,0.00026173,2]
[354953436,1740845368148,-500.0,0.00026173,2]
[354953437,1740845368173,-69232.53978501,0.00026176,2]
[354953438,1740845369088,-73703.41920824,0.00026176,2]
[354953439,1740845370084,-34425.59484,0.00026176,2]
[354953463,1740845432454,-1787.65887836,0.00024076,2]
[354953464,1740845432464,-862.653472,0.00025188,2]
[354953465,1740845432474,-434.20525171,0.00026076,2]
[354953466,1740845432484,-345.16703714,0.00026076,2]
[354953467,1740845432494,-151.0,0.0002616,2]
[354953468,1740845432504,-500.0,0.0002616,2]
[354953469,1740845432514,-550.0,0.0002616,2]
[354953470,1740845432523,-605.0,0.0002616,2]
[354953471,1740845432533,-665.5,0.0002616,2]
[354953472,1740845432544,-732.05,0.0002616,2]
[354953473,1740845432554,-805.255,0.0002616,2]
[354953474,1740845432563,-885.7805,0.0002616,2]
[354953475,1740845432573,-974.35855,0.0002616,2]
[354953476,1740845432583,-1071.794405,0.0002616,2]
[354953477,1740845432593,-1000.0,0.0002616,2]
[354953478,1740845432603,-113.95915483,0.00026166,3]
[354953481,1740845438115,-62.91084517,0.00026166,3]
[354953482,1740845438125,-530.61,0.00026166,3]
[354953483,1740845438135,-155.13,0.00026166,3]
[354953484,1740845438144,-465.44,0.00026166,3]
[354953485,1740845438154,-500.0,0.00026173,2]
[354953486,1740845438164,-170.79131233,0.00026173,2]
[354953487,1740845438181,-329.20868767,0.00026173,2]
[354953488,1740845438192,-257.2762552,0.00026173,2]
[354953489,1740845438239,-242.7237448,0.00026173,2]
[354953490,1740845438249,-500.0,0.00026173,2]
[354953491,1740845438259,-500.0,0.00026173,2]
[354953492,1740845438268,-109.40605544,0.00026173,2]
[354953493,1740845438280,-390.59394456,0.00026173,2]
[354953494,1740845438291,-300.0,0.00026175,2]
[354953495,1740845438301,-160.0,0.00026175,2]
[354953496,1740845438312,-997.10838568,0.00026175,2]
[354953497,1740845438322,-3332415.50966352,0.00026176,2]
[354953498,1740845438332,-10912.515497,0.00026176,2]
[354953499,1740845438343,-601.6,0.000262,7]
[354953500,1740845438353,-151.0,0.000262,10]
[354953501,1740845438364,-496.66436742,0.00026383,4]
[354953502,1740845438375,-964.16931298,0.000264,2]
[354953503,1740845438385,-500.0,0.000265,2]
[354953504,1740845438396,-250.0,0.000265,30]
[354953505,1740845438406,-174.721314,0.00026532,2]
[354953506,1740845438417,-2842.39531304,0.00026699,2]
[354953507,1740845438427,-166.1,0.00026708,2]
[354953508,1740845438438,-496.66436742,0.00026866,4]
[354953509,1740845438449,-2842.39531304,0.00027147,2]
[354953510,1740845438459,-468.06482487,0.00027199,2]
[354953511,1740845438470,-182.71,0.00027256,2]
[354953512,1740845438480,-197.87834524,0.00027297,2]
[354953513,1740845438491,-496.66436742,0.00027348,4]
[354953514,1740845438502,-500.0,0.00027373,2]
[354953515,1740845438513,-500.0,0.00027373,2]
[354953516,1740845438524,-160.0,0.00027373,2]
[354953517,1740845438534,-500.0,0.00027373,2]
[354953518,1740845438545,-500.0,0.00027373,2]
[354953519,1740845438555,-504.34516954,0.00027373,2]
[354953520,1740845438566,-500.0,0.00027373,2]
[354953521,1740845438576,-500.0,0.00027373,2]
[354953522,1740845438586,-501.82626897,0.00027373,2]
[354953523,1740845438596,-500.0,0.00027373,2]
[354953524,1740845438607,-500.0,0.00027373,2]
[354953525,1740845438618,-198.83457655,0.00027373,2]
[354953526,1740845438628,-500.0,0.00027373,2]
[354953527,1740845438639,-601.26755221,0.00027373,2]
[354953528,1740845438650,-500.0,0.00027373,2]
[354953529,1740845438660,-500.0,0.00027373,2]
[354953530,1740845438671,-395.312459,0.00027373,2]
[354953531,1740845438681,-166.48973665,0.00027373,2]
[354953532,1740845438692,-511.26437518,0.00027373,2]
[354953533,1740845438702,-162.65928204,0.00027373,2]
[354953534,1740845438712,-500.0,0.00027373,2]
[354953535,1740845438722,-500.0,0.00027373,2]
[354953536,1740845438733,-500.0,0.00027373,2]
[354953537,1740845438744,-500.0,0.00027373,2]
[354953538,1740845438755,-500.0,0.00027373,2]
[354953539,1740845438765,-500.0,0.00027373,2]
[354953540,1740845438776,-500.0,0.00027373,2]
[354953541,1740845438787,-500.0,0.00027373,2]
[354953542,1740845438798,-628.55083238,0.00027373,2]
[354953543,1740845438808,-500.0,0.00027373,2]
[354953544,1740845438819,-367.80974713,0.00027373,2]
[354953545,1740845438829,-500.0,0.00027373,2]
[354953546,1740845438840,-500.0,0.00027373,2]
[354953547,1740845438851,-500.0,0.00027373,2]
[354953548,1740845438864,-500.0,0.00027373,2]
[354953549,1740845438875,-500.0,0.00027373,2]
[354953550,1740845438885,-500.0,0.00027373,2]
[354953551,1740845438896,-500.0,0.00027373,2]
[354953552,1740845438908,-500.0,0.00027373,2]
[354953553,1740845438920,-391.67349365,0.00027373,2]
[354953554,1740845438931,-500.0,0.00027373,2]
[354953555,1740845438942,-198.68961882,0.00027373,2]
[354953556,1740845438952,-503.42715993,0.00027373,2]
[354953557,1740845438963,-479.59262317,0.00027373,2]
[354953558,1740845438974,-163.75696149,0.00027373,2]
[354953559,1740845438984,-500.0,0.00027373,2]
[354953560,1740845438994,-501.49573493,0.00027373,2]
[354953561,1740845439005,-500.0,0.00027373,2]
[354953562,1740845439015,-501.75957197,0.00027373,2]
[354953563,1740845439026,-500.0,0.00027373,2]
[354953564,1740845439036,-500.0,0.00027373,2]
[354953565,1740845439047,-500.64829221,0.00027373,2]
[354953566,1740845439057,-500.0,0.00027373,2]
[354953567,1740845439067,-500.0,0.00027373,2]
[354953568,1740845439077,-500.0,0.00027373,2]
[354953569,1740845439087,-500.0,0.00027373,2]
[354953570,1740845439097,-300.20962099,0.00027373,2]
[354953571,1740845439108,-500.0,0.00027373,2]
[354953572,1740845439118,-160.0,0.00027396,2]
[354953573,1740845439128,-25000.0,0.00027397,4]
[354953574,1740845439138,-500.0,0.00027397,2]
[354953575,1740845439148,-500.0,0.00027397,2]
[354953576,1740845439158,-746.68,0.00027397,2]
[354953577,1740845439168,-500.0,0.00027397,2]
[354953578,1740845439178,-500.0,0.00027397,2]
[354953579,1740845439189,-500.0,0.00027397,2]
[354953580,1740845439200,-500.0,0.00027397,2]
[354953581,1740845439212,-500.0,0.00027397,2]
[354953582,1740845439223,-912.94,0.00027397,2]
[354953583,1740845439233,-500.0,0.00027397,2]
[354953584,1740845439243,-503.01077724,0.00027397,2]
[354953585,1740845439253,-500.0,0.00027397,2]
[354953586,1740845439263,-500.0,0.00027397,2]
[354953587,1740845439273,-500.0,0.00027397,2]
[354953588,1740845439283,-500.0,0.00027397,2]
[354953589,1740845439293,-500.0,0.00027397,2]
[354953590,1740845439303,-500.0,0.00027397,2]
[354953591,1740845439313,-500.0,0.00027397,2]
[354953592,1740845439323,-500.0,0.00027397,2]
[354953593,1740845439334,-500.0,0.00027397,2]
[354953594,1740845439344,-500.0,0.00027397,2]
[354953595,1740845439354,-500.0,0.00027397,2]
[354953596,1740845439364,-500.0,0.00027397,2]
[354953597,1740845439374,-500.0,0.00027397,2]
[354953598,1740845439384,-500.0,0.00027397,2]
[354953599,1740845439394,-500.0,0.00027397,2]
[354953600,1740845439405,-500.0,0.00027397,2]
[354953601,1740845439415,-500.0,0.00027397,2]
[354953602,1740845439426,-500.0,0.00027397,2]
[354953603,1740845439436,-500.0,0.00027397,2]
[354953604,1740845439446,-721.67,0.00027397,2]
[354953605,1740845439456,-500.0,0.00027397,2]
[354953606,1740845439467,-500.0,0.00027397,2]
[354953607,1740845439477,-500.0,0.00027397,2]
[354953608,1740845439487,-500.0,0.00027397,2]
[354953609,1740845439497,-500.0,0.00027397,2]
[354953610,1740845439507,-815.62,0.00027397,2]
[354953611,1740845439517,-500.0,0.00027397,2]
[354953612,1740845439528,-517.33893347,0.00027397,2]
[354953613,1740845439539,-500.0,0.00027397,2]
[354953614,1740845439549,-500.0,0.00027397,2]
[354953615,1740845439559,-500.0,0.00027397,2]
[354953616,1740845439569,-500.0,0.00027397,2]
[354953617,1740845439580,-500.0,0.00027397,2]
[354953618,1740845439590,-1158.25,0.00027397,2]
[354953619,1740845439599,-500.0,0.00027397,2]
[354953620,1740845439610,-500.0,0.00027397,2]
[354953621,1740845439620,-500.0,0.00027397,2]
[354953622,1740845439630,-500.0,0.00027397,2]
[354953623,1740845439640,-507.56002546,0.00027397,2]
[354953624,1740845439651,-500.0,0.00027397,2]
[354953625,1740845439661,-500.0,0.00027397,2]
[354953626,1740845439672,-500.0,0.00027397,2]
[354953628,1740845439682,-500.0,0.00027397,2]
[354953630,1740845439691,-500.0,0.00027397,2]
[354953632,1740845439702,-500.0,0.00027397,2]
[354953634,1740845439712,-500.0,0.00027397,2]
[354953636,1740845439722,-500.0,0.00027397,2]
[354953638,1740845439733,-500.0,0.00027397,2]
[354953640,1740845439743,-500.0,0.00027397,2]
[354953642,1740845439754,-500.0,0.00027397,2]
[354953644,1740845439764,-500.0,0.00027397,2]
[354953647,1740845439775,-824.65,0.00027397,2]
[354953649,1740845439785,-500.0,0.00027397,2]
[354953651,1740845439796,-500.0,0.00027397,2]
[354953653,1740845439807,-500.0,0.00027397,2]
[354953655,1740845439818,-500.0,0.00027397,2]
[354953657,1740845439828,-500.0,0.00027397,2]
[354953659,1740845439839,-514.09717767,0.00027397,2]
[354953661,1740845439849,-500.0,0.00027397,2]
[354953663,1740845439863,-500.0,0.00027397,2]
[354953665,1740845439874,-500.0,0.00027397,2]
[354953668,1740845439884,-500.0,0.00027397,2]
[354953670,1740845439895,-500.0,0.00027397,2]
[354953672,1740845439905,-500.0,0.00027397,2]
[354953674,1740845439916,-500.0,0.00027397,2]
[354953676,1740845439927,-500.0,0.00027397,2]
[354953678,1740845439940,-500.0,0.00027397,2]
[354953680,1740845439951,-500.0,0.00027397,2]
[354953682,1740845439963,-500.0,0.00027397,2]
[354953684,1740845439975,-500.0,0.00027397,2]
[354953686,1740845439987,-500.0,0.00027397,2]
[354953688,1740845439998,-821.43,0.00027397,2]
[354953691,1740845440009,-1588.65,0.00027397,2]
[354953693,1740845440019,-533.40424609,0.00027397,2]
[354953695,1740845440030,-500.0,0.00027397,2]
[354953697,1740845440041,-500.0,0.00027397,2]
[354953700,1740845440052,-500.0,0.00027397,2]
[354953703,1740845440063,-500.0,0.00027397,2]
[354953705,1740845440074,-500.0,0.00027397,2]
[354953707,1740845440084,-500.0,0.00027397,2]
[354953709,1740845440095,-500.0,0.00027397,2]
[354953711,1740845440106,-500.0,0.00027397,2]
[354953714,1740845440117,-1443.29,0.00027397,2]
[354953716,1740845440128,-500.0,0.00027397,2]
[354953718,1740845440139,-500.0,0.00027397,2]
[354953720,1740845440151,-500.0,0.00027397,2]
[354953722,1740845440162,-566.34,0.00027397,2]
[354953724,1740845440174,-500.0,0.00027397,2]
[354953727,1740845440184,-500.0,0.00027397,2]
[354953730,1740845440195,-1143.22,0.00027397,2]
[354953732,1740845440205,-500.0,0.00027397,2]
[354953735,1740845440216,-500.0,0.00027397,2]
[354953739,1740845440227,-500.0,0.00027397,2]
[354953742,1740845440239,-1244.64,0.00027397,2]
[354953745,1740845440251,-558.07,0.00027397,2]
[354953748,1740845440261,-500.0,0.00027397,2]
[354953751,1740845440272,-1089.13,0.00027397,2]
[354953754,1740845440283,-1089.13,0.00027397,2]
[354953757,1740845440293,-1089.13,0.00027397,2]
[354953759,1740845440304,-603.75,0.00027397,2]
[354953762,1740845440315,-1089.13,0.00027397,2]
[354953765,1740845440325,-1089.13,0.00027397,2]
[354953769,1740845440336,-1089.13,0.00027397,2]
[354953771,1740845440346,-1089.13,0.00027397,2]
[354953774,1740845440357,-500.0,0.00027397,2]
[354953777,1740845440367,-500.0,0.00027397,2]
[354953780,1740845440378,-1166.91,0.00027397,2]
[354953783,1740845440389,-500.94,0.00027397,2]
[354953785,1740845440400,-500.09789776,0.00027397,2]
[354953788,1740845440411,-500.0,0.00027397,2]
[354953790,1740845440422,-500.0,0.00027397,2]
[354953792,1740845440432,-500.0,0.00027397,2]
[354953794,1740845440443,-1000.0,0.00027397,2]
[354953795,1740845440453,-500.0,0.00027397,2]
[354953797,1740845440464,-786.24,0.00027397,2]
[354953799,1740845440475,-500.0,0.00027397,2]
[354953801,1740845440485,-796.34,0.00027397,2]
[354953803,1740845440495,-500.0,0.00027397,2]
[354953804,1740845440506,-500.0,0.00027397,2]
[354953806,1740845440516,-500.0,0.00027397,2]
[354953808,1740845440527,-500.0,0.00027397,2]
[354953810,1740845440537,-500.0,0.00027397,2]
[354953812,1740845440548,-1158.67,0.00027397,2]
[354953814,1740845440559,-599.49259677,0.00027397,2]
[354953815,1740845440570,-500.0,0.00027397,2]
[354953816,1740845440581,-500.0,0.00027397,2]
[354953817,1740845440592,-571.97,0.00027397,2]
[354953818,1740845440603,-500.0,0.00027397,2]
[354953819,1740845440613,-500.0,0.00027397,2]
[354953820,1740845440623,-673.5,0.00027397,2]
[354953821,1740845440635,-996.94,0.00027397,2]
[354953822,1740845440646,-500.0,0.00027397,2]
[354953823,1740845440656,-1190.79,0.00027397,2]
[354953824,1740845440667,-500.0,0.00027397,2]
[354953825,1740845440677,-500.0,0.00027397,2]
[354953826,1740845440688,-500.0,0.00027397,2]
[354953827,1740845440698,-500.0,0.00027397,2]
[354953828,1740845440709,-500.0,0.00027397,2]
[354953829,1740845440720,-725.34,0.00027397,2]
[354953830,1740845440733,-500.0,0.00027397,2]
[354953831,1740845441061,-500.0,0.00027397,2]
[354953832,1740845441071,-500.0,0.00027397,2]
[354953833,1740845441082,-500.0,0.00027397,2]
[354953834,1740845441092,-500.0,0.00027397,2]
[354953835,1740845441102,-500.0,0.00027397,2]
[354953836,1740845441113,-500.0,0.00027397,2]
[354953837,1740845441122,-557.58,0.00027397,2]
[354953838,1740845441132,-418.88990574,0.00027397,2]
[354953839,1740845441142,-500.0,0.00027397,2]
[354953840,1740845441152,-500.0,0.00027397,2]
[354953841,1740845441162,-500.0,0.00027397,2]
[354953842,1740845441172,-500.0,0.00027397,2]
[354953843,1740845441182,-500.0,0.00027397,2]
[354953844,1740845441192,-500.0,0.00027397,2]
[354953845,1740845441202,-500.0,0.00027397,2]
[354953846,1740845441214,-500.0,0.00027397,2]
[354953848,1740845441224,-500.0,0.00027397,2]
[354953849,1740845441234,-500.0,0.00027397,2]
[354953850,1740845441244,-500.0,0.00027397,2]
[354953851,1740845441254,-500.0,0.00027397,2]
[354953852,1740845441263,-500.0,0.00027397,2]
[354953853,1740845441273,-500.0,0.00027397,2]
[354953854,1740845441282,-500.0,0.00027397,2]
[354953855,1740845441292,-522.4143186,0.00027397,2]
[354953856,1740845441301,-500.0,0.00027397,2]
[354953857,1740845441311,-500.0,0.00027397,2]
[354953858,1740845441321,-500.0,0.00027397,2]
[354953859,1740845441331,-500.0,0.00027397,2]
[354953860,1740845441340,-500.0,0.00027397,2]
[354953861,1740845441350,-500.0,0.00027397,2]
[354953862,1740845441360,-500.0,0.00027397,2]
[354953863,1740845441370,-500.0,0.00027397,2]
[354953864,1740845441379,-510.48348613,0.00027397,2]
[354953865,1740845441390,-500.0,0.00027397,2]
[354953866,1740845441399,-860.6,0.00027397,2]
[354953867,1740845441409,-500.0,0.00027397,2]
[354953868,1740845441419,-500.0,0.00027397,2]
[354953869,1740845441428,-500.83312151,0.00027397,2]
[354953870,1740845441438,-500.0,0.00027397,2]
[354953871,1740845441448,-500.0,0.00027397,2]
[354953872,1740845441457,-500.0,0.00027397,2]
[354953873,1740845441467,-500.0,0.00027397,2]
[354953874,1740845441477,-500.0,0.00027397,2]
[354953875,1740845441487,-500.0,0.00027397,2]
[354953876,1740845441496,-500.0,0.00027397,2]
[354953877,1740845441506,-500.0,0.00027397,2]
[354953878,1740845441516,-500.0,0.00027397,2]
[354953879,1740845441526,-500.0,0.00027397,2]
[354953880,1740845441537,-500.0,0.00027397,2]
[354953881,1740845441546,-500.0,0.00027397,2]
[354953882,1740845441555,-527.98,0.00027397,2]
[354953883,1740845441567,-500.0,0.00027397,2]
[354953884,1740845441577,-500.0,0.00027397,2]
[354953885,1740845441588,-500.0,0.00027397,2]
[354953886,1740845441599,-500.0,0.00027397,2]
[354953887,1740845441610,-500.0,0.00027397,2]
[354953888,1740845441621,-500.0,0.00027397,2]
[354953889,1740845441631,-500.0,0.00027397,2]
[354953890,1740845441642,-889.37,0.00027397,2]
[354953891,1740845441652,-500.0,0.00027397,2]
[354953892,1740845441662,-500.0,0.00027397,2]
[354953893,1740845441673,-500.0,0.00027397,2]
[354953894,1740845441683,-721.11,0.00027397,2]
[354953895,1740845441694,-1227.77,0.00027397,2]
[354953896,1740845441703,-500.0,0.00027397,2]
[354953897,1740845441713,-500.0,0.00027397,2]
[354953898,1740845441722,-869.26,0.00027397,2]
[354953899,1740845441733,-231.37695266,0.00027397,2]
[354953900,1740845441743,-500.0,0.00027397,2]
[354953901,1740845441752,-500.0,0.00027397,2]
[354953902,1740845441762,-500.0,0.00027397,2]
[354953903,1740845441772,-500.0,0.00027397,2]
[354953904,1740845441781,-500.0,0.00027397,2]
[354953905,1740845441791,-680.49,0.00027397,2]
[354953906,1740845441801,-500.0,0.00027397,2]
[354953907,1740845441811,-907.98,0.00027397,2]
[354953908,1740845441822,-500.0,0.00027397,2]
[354953909,1740845441832,-500.0,0.00027397,2]
[354953910,1740845441843,-500.0,0.00027397,2]
[354953911,1740845441855,-500.0,0.00027397,2]
[354953912,1740845441867,-500.0,0.00027397,2]
[354953913,1740845441877,-500.0,0.00027397,2]
[354953914,1740845441887,-500.0,0.00027397,2]
[354953915,1740845441898,-500.0,0.00027397,2]
[354953916,1740845441908,-500.0,0.00027397,2]
[354953917,1740845441918,-500.0,0.00027397,2]
[354953918,1740845441927,-1111.41,0.00027397,2]
[354953919,1740845441940,-500.0,0.00027397,2]
[354953920,1740845441950,-500.0,0.00027397,2]
[354953921,1740845441960,-500.0,0.00027397,2]
[354953922,1740845441970,-500.0,0.00027397,2]
[354953923,1740845441980,-500.0,0.00027397,2]
[354953924,1740845441991,-500.0,0.00027397,2]
[354953925,1740845442002,-500.0,0.00027397,2]
[354953926,1740845442012,-500.0,0.00027397,2]
[354953927,1740845442022,-1002.25284486,0.00027397,5]
[354953928,1740845442032,-500.0,0.00027397,2]
[354953929,1740845442042,-500.0,0.00027397,2]
[354953930,1740845442052,-200.89045231,0.00027397,2]
[354953931,1740845442063,-1426.32,0.00027397,2]
[354953932,1740845442072,-500.0,0.00027397,2]
[354953933,1740845442082,-552.49454,0.00027397,2]
[354953934,1740845442091,-500.0,0.00027397,2]
[354953935,1740845442102,-500.0,0.00027397,2]
[354953936,1740845442111,-500.0,0.00027397,2]
[354953937,1740845442121,-667.54,0.00027397,2]
[354953938,1740845442131,-500.0,0.00027397,2]
[354953939,1740845442141,-500.0,0.00027397,2]
[354953940,1740845442152,-500.0,0.00027397,2]
[354953941,1740845442162,-500.0,0.00027397,2]
[354953942,1740845442172,-500.0,0.00027397,2]
[354953943,1740845442183,-500.0,0.00027397,2]
[354953944,1740845442192,-500.0,0.00027397,2]
[354953945,1740845442202,-500.0,0.00027397,2]
[354953946,1740845442212,-500.0,0.00027397,2]
[354953947,1740845442221,-500.0,0.00027397,2]
[354953948,1740845442243,-1657.67,0.00027397,2]
[354953949,1740845442255,-500.0,0.00027397,2]
[354953950,1740845442266,-510.62667176,0.00027397,2]
[354953951,1740845442277,-500.0,0.00027397,2]
[354953952,1740845442287,-500.0,0.00027397,2]
[354953953,1740845442298,-500.0,0.00027397,2]
[354953954,1740845442309,-500.0,0.00027397,2]
[354953955,1740845442320,-500.0,0.00027397,2]
[354953956,1740845442330,-356.94056985,0.00027397,2]
[354953957,1740845442341,-500.0,0.00027397,2]
[354953958,1740845442352,-500.0,0.00027397,2]